fUST/lending_fUST_20260210
["ID","MTS","AMOUNT","RATE_DAILY","PERIOD"]
[404940034,1770701443058,-151.0,0.0003999,10]
[404940036,1770701443068,-151.0,0.0003999,120]
[404940038,1770701443079,-151.0,0.0003999,120]
[404940040,1770701443089,-151.0,0.0003999,120]
[404940042,1770701443101,-151.0,0.0003999,120]
[404940045,1770701443115,-151.0,0.0003999,120]
[404940047,1770701443125,-180.13872,0.0003999,120]
[404940049,1770701443137,-167.584749,0.0003999,120]
[404940052,1770701443147,-151.0,0.0003999,120]
[404940054,1770701443157,-151.0,0.0003999,120]
[404940056,1770701443167,-75134.2373879,0.0003999,3]
[404940057,1770701443177,-742.18218896,0.0003999,3]
[404940058,1770701443189,-151.0,0.0003999,120]
[404940059,1770701443201,-110436.7575161,0.0003999,2]
[404940066,1770701446461,-500.0,0.00024649,2]
[404940067,1770701446472,-500.0,0.00024649,2]
[404940068,1770701446482,-500.0,0.00024649,2]
[404940069,1770701446492,-21710.26929821,0.0003999,2]
[404940070,1770701446504,-7735.485685,0.0003999,2]
[404940071,1770701446516,-6682.46292307,0.0003999,2]
[404940079,1770701539422,-500.0,0.00024649,2]
[404940080,1770701539441,-500.0,0.00024649,2]
[404940081,1770701539457,-54.0,0.00024649,2]
[404940082,1770701540296,4136.26508477,0.000235,2]
[404940122,1770701864840,390861.95,0.000235,2]
[404940123,1770701914078,152.16545652,0.00014,10]
[404940255,1770702632716,-1240.60166235,0.00024395,2]
[404940256,1770702632727,-150.0,0.00024766,2]
[404940258,1770702632736,-300.0,0.0002514,2]
[404940260,1770702632746,-300.0,0.00025141,10]
[404940261,1770702632756,-300.0,0.00025141,10]
[404940262,1770702632766,-300.0,0.00025141,10]
[404940263,1770702632776,-300.0,0.00025141,10]
[404940264,1770702632785,-300.0,0.00025141,10]
[404940265,1770702632795,-300.0,0.00025141,10]
[404940266,1770702632804,-300.0,0.00025141,10]
[404940267,1770702632814,-300.0,0.00025141,10]
[404940268,1770702632824,-300.0,0.00025141,10]
[404940269,1770702632833,-300.0,0.00025141,10]
[404940270,1770702632842,-300.0,0.00025141,10]
[404940271,1770702632852,-300.0,0.00025141,10]
[404940273,1770702632861,-300.0,0.00025141,10]
[404940275,1770702632872,-161.71293988,0.00025141,10]
[404940283,1770702638540,-138.28706012,0.00025141,10]
[404940284,1770702638550,-300.0,0.00025141,10]
[404940285,1770702638560,-600.0,0.00025141,10]
[404940286,1770702638570,-177.0,0.00026766,2]
[404940287,1770702638580,-28.71293988,0.00027655,30]
[404940593,1770702646687,-582.95685074,0.00027655,30]
[404940594,1770702646698,-108.33020938,0.00027655,30]
[404940595,1770702646708,-204.0,0.00028766,2]
[404940596,1770702646718,-155.85,0.0002889,2]
[404940597,1770702646728,-864.0,0.00030421,30]
[404940598,1770702646737,-231.0,0.00030766,2]
[404940599,1770702646747,-371.4937683,0.00032684,2]
[404940600,1770702646758,-158.8299138,0.00032717,60]
[404940601,1770702646767,-258.0,0.00032766,2]
[404940602,1770702646776,-1000.0,0.00033463,30]
[404940603,1770702646785,-1403.143,0.00034455,2]
[404940604,1770702646794,-369.217,0.00034455,2]
[404940605,1770702646804,-473.002,0.00034455,2]
[404940606,1770702646813,-285.0,0.00034766,120]
[404940607,1770702646822,-312.0,0.00036766,120]
[404940608,1770702646832,-1000.0,0.00036809,30]
[404940609,1770702646841,-244.0,0.00036809,30]
[404940610,1770702646851,-138.87143884,0.00037371,2]
[404940611,1770702647236,-15.69856116,0.00037371,2]
[404940612,1770702647246,-565.43206679,0.00037455,2]
[404940629,1770703145133,502.04867201,0.00013699,2]
[404940631,1770703246693,1000.0,0.000235,2]
[404940632,1770703246961,1000.0,0.000235,2]
[404940633,1770703247247,1000.0,0.000235,2]
[404940634,1770703247485,1000.0,0.000235,2]
[404940635,1770703247759,1000.0,0.000235,2]
[404940636,1770703248000,1000.0,0.000235,2]
[404940637,1770703248266,1000.0,0.000235,2]
[404940638,1770703248575,1000.0,0.000235,2]
[404940639,1770703248833,1000.0,0.000235,2]
[404940640,1770703249107,1000.0,0.000235,2]
[404940754,1770703837826,-263.16121658,0.00024456,2]
[404940755,1770703837836,-150.0,0.00024891,2]
[404940756,1770703837845,-177.0,0.00026891,2]
[404940757,1770703837855,-150.0,0.00027397,5]
[404940758,1770703837864,-207.36857781,0.00027945,5]
[404940759,1770703837874,-200.0,0.00028445,2]
[404940760,1770703837883,-204.0,0.00028891,2]
[404940761,1770703837892,-231.0,0.00030891,2]
[404940762,1770703837902,-258.0,0.00032891,120]
[404940763,1770703837911,-171.5430116,0.00033635,2]
[404940764,1770703837920,-199.6551098,0.00034083,2]
[404940765,1770703837929,-1000.0,0.00034121,30]
[404940766,1770703837938,-810.568,0.00034327,2]
[404940767,1770703837948,-165.1740547,0.00034375,2]
[404940768,1770703837957,-150.241,0.00034455,2]
[404940769,1770703837966,-285.0,0.00034891,120]
[404940770,1770703837975,-300.0,0.00035259,2]
[404940771,1770703837984,-3088.5448351,0.0003643,2]
[404940772,1770703837993,-263.39213905,0.00036852,2]
[404940773,1770703838003,-312.0,0.00036891,120]
[404940774,1770703838012,-406.969906,0.00037315,2]
[404940775,1770703838021,-150.0,0.00037455,2]
[404940776,1770703838034,-8982.63853756,0.00038,2]
[404940777,1770703838043,-300.0,0.00038203,30]
[404940778,1770703838054,-300.0,0.00038203,30]
[404940779,1770703838065,-300.0,0.00038203,30]
[404940780,1770703838076,-300.0,0.00038203,30]
[404940781,1770703838086,-300.0,0.00038203,30]
[404940782,1770703838097,-300.0,0.00038203,30]
[404940783,1770703838107,-300.0,0.00038203,30]
[404940784,1770703838116,-300.0,0.00038203,30]
[404940785,1770703838126,-300.0,0.00038203,30]
[404940786,1770703838136,-300.0,0.00038203,30]
[404940787,1770703838145,-300.0,0.00038203,30]
[404940788,1770703838155,-300.0,0.00038203,30]
[404940789,1770703838164,-300.0,0.00038203,30]
[404940790,1770703838174,-300.0,0.00038203,30]
[404940791,1770703838184,-300.0,0.00038203,30]
[404940792,1770703838193,-290.34041167,0.00038692,2]
[404940793,1770703838203,-177.39,0.00038782,10]
[404940794,1770703838214,-571.75629136,0.00038789,15]
[404940795,1770703838223,-500.0,0.00038789,15]
[404940796,1770703838234,-500.0,0.00038789,15]
[404940797,1770703838243,-500.0,0.00038789,15]
[404940798,1770703838253,-500.0,0.00038789,15]
[404940799,1770703838263,-500.0,0.00038789,15]
[404940800,1770703838273,-500.0,0.00038789,7]
[404940801,1770703838282,-500.0,0.00038789,7]
[404940802,1770703838380,-500.0,0.00038789,15]
[404940803,1770703838391,-500.0,0.00038789,7]
[404940804,1770703838401,-500.0,0.00038789,7]
[404940805,1770703838411,-500.0,0.00038789,15]
[404940806,1770703838420,-500.0,0.00038789,15]
[404940807,1770703838430,-471.6680764,0.00038789,15]
[404940808,1770703838439,-500.0,0.00038789,7]
[404940809,1770703838449,-500.0,0.00038789,15]
[404940810,1770703838459,-500.0,0.00038789,15]
[404940811,1770703838469,-500.0,0.00038789,7]
[404940812,1770703838479,-500.0,0.00038789,7]
[404940813,1770703838488,-500.0,0.00038789,15]
[404940814,1770703838498,-437.60770379,0.00038789,15]
[404940815,1770703838507,-589.53717769,0.00038789,15]
[404940816,1770703838516,-500.0,0.00038789,7]
[404940817,1770703838525,-500.0,0.00038789,7]
[404940818,1770703838535,-500.0,0.00038789,15]
[404940819,1770703838544,-500.0,0.00038789,7]
[404940820,1770703838554,-500.0,0.00038789,7]
[404940821,1770703838564,-500.0,0.00038789,15]
[404940822,1770703838574,-500.0,0.00038789,15]
[404940823,1770703838583,-500.0,0.00038789,15]
[404940824,1770703838593,-559.5174392,0.00038789,7]
[404940825,1770703838603,-500.0,0.00038789,15]
[404940826,1770703838614,-500.0,0.00038789,7]
[404940827,1770703838623,-500.0,0.00038789,7]
[404940828,1770703838632,-378.21730759,0.00038789,15]
[404940829,1770703838642,-500.0,0.00038789,15]
[404940830,1770703838651,-500.0,0.00038789,7]
[404940831,1770703838661,-500.0,0.00038789,15]
[404940832,1770703838671,-500.0,0.00038789,7]
[404940833,1770703838681,-500.0,0.00038789,7]
[404940834,1770703838691,-500.0,0.00038789,15]
[404940835,1770703838700,-500.0,0.00038789,7]
[404940836,1770703838710,-500.0,0.00038789,7]
[404940837,1770703838720,-500.0,0.00038789,7]
[404940838,1770703838729,-500.0,0.00038789,7]
[404940839,1770703838740,-500.0,0.00038789,7]
[404940840,1770703838750,-500.0,0.00038789,7]
[404940841,1770703838760,-500.0,0.00038789,7]
[404940842,1770703838769,-500.0,0.00038789,7]
[404940843,1770703838780,-500.0,0.00038789,7]
[404940844,1770703838789,-500.0,0.00038789,7]
[404940845,1770703838799,-500.0,0.00038789,7]
[404940846,1770703838808,-500.0,0.00038789,7]
[404940847,1770703838817,-500.0,0.00038789,7]
[404940848,1770703838826,-329.98083253,0.00038789,7]
[404940849,1770703838836,-500.0,0.00038789,7]
[404940850,1770703838845,-500.0,0.00038789,7]
[404940851,1770703838855,-500.0,0.00038789,7]
[404940852,1770703838864,-500.0,0.00038789,7]
[404940853,1770703838874,-500.0,0.00038789,7]
[404940854,1770703838883,-500.0,0.00038789,7]
[404940855,1770703838893,-500.0,0.00038789,7]
[404940856,1770703838903,-500.0,0.00038789,7]
[404940857,1770703838913,-500.0,0.00038789,7]
[404940858,1770703838922,-500.0,0.00038789,7]
[404940859,1770703838932,-500.0,0.00038789,7]
[404940860,1770703838942,-500.0,0.00038789,7]
[404940861,1770703838952,-500.0,0.00038789,7]
[404940862,1770703838961,-500.0,0.00038789,7]
[404940863,1770703838971,-500.0,0.00038789,7]
[404940864,1770703838981,-500.0,0.00038789,7]
[404940865,1770703838991,-500.0,0.00038789,7]
[404940866,1770703839001,-500.0,0.00038789,7]
[404940867,1770703839011,-500.0,0.00038789,7]
[404940868,1770703839021,-500.0,0.00038789,7]
[404940869,1770703839035,-500.0,0.00038789,7]
[404940870,1770703839045,-500.0,0.00038789,7]
[404940871,1770703839055,-500.0,0.00038789,7]
[404940872,1770703839067,-500.0,0.00038789,7]
[404940873,1770703839078,-500.0,0.00038789,7]
[404940874,1770703839089,-500.0,0.00038789,7]
[404940875,1770703839099,-500.0,0.00038789,7]
[404940876,1770703839109,-500.0,0.00038789,7]
[404940877,1770703839120,-500.0,0.00038789,7]
[404940878,1770703839130,-500.0,0.00038789,7]
[404940879,1770703839139,-500.0,0.00038789,7]
[404940880,1770703839149,-500.0,0.00038789,7]
[404940881,1770703839159,-500.0,0.00038789,7]
[404940882,1770703839168,-500.0,0.00038789,7]
[404940883,1770703839177,-500.0,0.00038789,7]
[404940884,1770703839187,-500.0,0.00038789,7]
[404940885,1770703839196,-500.0,0.00038789,7]
[404940886,1770703839207,-500.0,0.00038789,7]
[404940887,1770703839219,-500.0,0.00038789,7]
[404940888,1770703839228,-742.18218896,0.0003879,7]
[404940889,1770703839238,-220.97878926,0.00038792,2]
[404940890,1770703839247,-379.39466697,0.00038792,2]
[404940891,1770703839256,-463.90930126,0.00038792,2]
[404940892,1770703839266,-251.273942,0.00038792,2]
[404940893,1770703839276,-287.17021943,0.00038792,2]
[404940894,1770703839285,-203.43147984,0.000388,2]
[404940895,1770703839294,-406.969906,0.00038886,2]
[404940896,1770703839304,-339.0,0.00038891,120]
[404940897,1770703839313,-600.0,0.00038966,60]
[404940898,1770703839322,-214.66864199,0.00039053,7]
[404940899,1770703839332,-151.25828038,0.00039174,7]
[404940900,1770703839342,-500.0,0.00039386,2]
[404940901,1770703839351,-500.0,0.00039387,2]
[404940902,1770703839361,-343.41230293,0.00039387,2]
[404940977,1770704885194,3137.05667991,0.00019205,5]
[404940980,1770704979795,-571.00737641,0.0002465,2]
[404940999,1770705037926,-336.00839522,0.00024403,2]
[404941035,1770705040082,-3163.093248,0.00024403,2]
[404941036,1770705040106,-3e-08,0.00024403,2]
[404941037,1770705040123,-339.46037618,0.00024403,2]
[404941050,1770705047493,-1117.68601004,0.00024403,2]
[404941051,1770705047504,-5563.35980759,0.0002465,2]
[404941052,1770705047514,-150.0,0.00025189,2]
[404941053,1770705047524,-177.0,0.00027189,2]
[404941054,1770705047534,-204.0,0.00029189,2]
[404941055,1770705047544,-735.18,0.00031,60]
[404941056,1770705047554,-231.0,0.00031189,2]
[404941057,1770705047563,-258.0,0.00033189,120]
[404941058,1770705047573,-157.59069185,0.000332,117]
[404941059,1770705047582,-380.0,0.00033457,2]
[404941060,1770705047592,-1048.2801558,0.0003363,2]
[404941061,1770705047601,-14183.2790574,0.00033932,2]
[404941062,1770705047610,-978.7328701,0.00034415,2]
[404941063,1770705047619,-500.0,0.00035,120]
[404941064,1770705047632,-285.0,0.00035189,120]
[404941065,1770705047642,-500.78,0.0003585,30]
[404941066,1770705047651,-300.0,0.00036581,2]
[404941067,1770705047661,-312.0,0.00037189,120]
[404941068,1770705047671,-168.0,0.00038548,2]
[404941069,1770705047680,-168.0,0.00038648,2]
[404941070,1770705047693,-545.40769707,0.00038784,2]
[404941071,1770705047705,-742.18218896,0.00038789,7]
[404941072,1770705047714,-203.43147984,0.000388,2]
[404941073,1770705047724,-1153.6782661,0.00038837,2]
[404941074,1770705047734,-500.0,0.00039,120]
[404941075,1770705047746,-711.0,0.0003904,11]
[404941076,1770705047760,-162.88293136,0.0003907,2]
[404941077,1770705047770,-2000.0,0.00039173,7]
[404941078,1770705047779,-2000.0,0.00039173,7]
[404941079,1770705047789,-2000.0,0.00039173,7]
[404941080,1770705047799,-2000.0,0.00039173,7]
[404941081,1770705047808,-2000.0,0.00039173,7]
[404941082,1770705047819,-2000.0,0.00039173,7]
[404941083,1770705047829,-2000.0,0.00039173,7]
[404941084,1770705047838,-2000.0,0.00039173,7]
[404941085,1770705047847,-2000.0,0.00039173,7]
[404941086,1770705047856,-2000.0,0.00039173,7]
[404941087,1770705047967,-2000.0,0.00039173,7]
[404941088,1770705047977,-2000.0,0.00039173,7]
[404941089,1770705047987,-2000.0,0.00039173,7]
[404941090,1770705047996,-459.56960473,0.00039173,7]
[404941091,1770705048006,-151.0,0.00039189,120]
[404941092,1770705048015,-339.0,0.00039189,120]
[404941093,1770705048024,-513.0242778,0.00039264,2]
[404941094,1770705048035,-168.0,0.00039428,2]
[404941095,1770705048044,-162.88293136,0.0003948,2]
[404941096,1770705048055,-770.16949746,0.0003959,2]
[404941151,1770705142514,-150.0,0.00024658,2]
[404941204,1770705264915,-150.0,0.00025205,2]
[404941205,1770705264938,-85.0,0.00025205,2]
[404941206,1770705264966,-165.0,0.00025205,2]
[404941251,1770705324338,-150.0,0.00024658,2]
[404941252,1770705324360,-265.9926235,0.00025205,2]
[404941255,1770705339941,-500.0,0.00024953,2]
[404941299,1770705479585,167.45,0.00012987,2]
[404941484,1770706232106,-580.99262353,0.00024334,2]
[404941485,1770706232115,-150.0,0.00024644,2]
[404941486,1770706232125,-204.69,0.0002572,2]
[404941487,1770706232135,-177.0,0.00026644,2]
[404941488,1770706232145,-155.85,0.00027079,2]
[404941489,1770706232155,-165.15597142,0.00028644,2]
[404941750,1770706238089,-38.84402858,0.00028644,2]
[404941751,1770706238100,-210.51203575,0.00029644,2]
[404941752,1770706238110,-231.0,0.00030644,2]
[404941753,1770706238119,-200.0,0.00031079,2]
[404941754,1770706238131,-4040.53946006,0.00031849,2]
[404941755,1770706238141,-258.0,0.00032644,2]
[404941756,1770706238150,-161.36555838,0.00032911,10]
[404941757,1770706238159,-157.59069185,0.000332,117]
[404941758,1770706238169,-300.0,0.00033738,3]
[404941759,1770706238178,-300.0,0.0003374,30]
[404941760,1770706238188,-285.0,0.00034644,120]
[404941761,1770706238197,-3158.34040225,0.00035,7]
[404941762,1770706238207,-206.03061211,0.00035,2]
[404941763,1770706238216,-271.31327,0.00036153,2]
[404941764,1770706238226,-312.0,0.00036644,120]
[404941765,1770706238237,-2163.0,0.00037242,2]
[404941766,1770706238246,-1041.12797387,0.00037242,2]
[404941789,1770706240202,-20.27389376,0.00037242,2]
[404941798,1770706240279,-3e-08,0.00037242,2]
[404942778,1770707283045,360.94,0.00012987,7]
[404942790,1770707432240,-580.04947821,0.00025204,2]
[404942791,1770707432249,-150.0,0.00025204,2]
[404942792,1770707432258,-177.0,0.00027204,2]
[404942793,1770707432267,-1000.0,0.00028,6]
[404942794,1770707432276,-204.0,0.00029204,2]
[404942795,1770707432285,-712.0,0.0003,10]
[404942796,1770707432294,-795.28118661,0.00030205,2]
[404942797,1770707432303,-231.0,0.00031204,2]
[404942798,1770707432312,-110.85433518,0.00031849,2]
[404942809,1770707432479,-3943.28748278,0.00031849,2]
[404942810,1770707432488,-1000.0,0.00032,10]
[404942811,1770707432498,-258.0,0.00033204,120]
[404942812,1770707432507,-285.0,0.00035204,120]
[404942813,1770707432516,-168.0,0.00037026,2]
[404942814,1770707432523,-168.0,0.00037201,7]
[404942815,1770707432532,-312.0,0.00037204,120]
[404942816,1770707432540,-207.989,0.00037242,2]
[404942817,1770707432550,-150.778,0.00037242,2]
[404942818,1770707432561,-150.771,0.00037242,2]
[404942819,1770707432571,-632.0,0.00037242,2]
[404942820,1770707432581,-2163.0,0.00037242,2]
[404942821,1770707432590,-1376.0,0.00037242,2]
[404942822,1770707432599,-168.0,0.00037338,120]
[404942823,1770707432608,-168.0,0.00037386,2]
[404942824,1770707432618,-397.59,0.00037424,7]
[404942825,1770707432627,-271.31327,0.00037675,2]
[404942826,1770707432637,-168.0,0.00037695,120]
[404942827,1770707432646,-168.0,0.0003778,2]
[404942828,1770707432655,-160.0,0.00037881,3]
[404942829,1770707432664,-168.0,0.00038045,2]
[404942830,1770707432674,-600.0,0.00038105,30]
[404942831,1770707432684,-168.0,0.00038205,2]
[404942832,1770707432693,-168.0,0.00038526,2]
[404942833,1770707432702,-500.0,0.0003859,30]
[404942834,1770707432712,-500.0,0.0003859,30]
[404942835,1770707432721,-507.89097826,0.0003859,30]
[404942836,1770707432730,-168.0,0.0003871,7]
[404942837,1770707432740,-371.44199302,0.00038826,2]
[404942838,1770707432750,-337.65062045,0.00038826,2]
[404942839,1770707432759,-424.50513489,0.00038826,2]
[404942840,1770707432768,-168.0,0.00038878,2]
[404942841,1770707432778,-271.57173747,0.0003899,3]
[404942842,1770707432787,-176.61524196,0.00038994,15]
[404942843,1770707432797,-500.0,0.00038994,7]
[404942844,1770707432807,-500.0,0.00038994,7]
[404942845,1770707432816,-500.0,0.00038994,7]
[404942846,1770707432826,-500.0,0.00038994,7]
[404942847,1770707432834,-500.0,0.00038994,7]
[404942848,1770707432845,-500.0,0.00038994,7]
[404942849,1770707432854,-392.34245313,0.00038994,7]
[404942850,1770707432863,-500.0,0.00038994,7]
[404942851,1770707432872,-500.0,0.00038994,7]
[404942852,1770707432883,-500.0,0.00038994,7]
[404942853,1770707432894,-500.0,0.00038994,7]
[404942854,1770707432904,-500.0,0.00038994,7]
[404942855,1770707432913,-500.0,0.00038994,7]
[404942856,1770707432923,-500.0,0.00038994,7]
[404942857,1770707432932,-500.0,0.00038994,7]
[404942858,1770707432943,-500.0,0.00038994,7]
[404942859,1770707432952,-500.0,0.00038994,7]
[404942860,1770707432961,-500.0,0.00038994,7]
[404942861,1770707432971,-500.0,0.00038994,7]
[404942862,1770707432980,-500.0,0.00038994,7]
[404942863,1770707432989,-500.0,0.00038994,7]
[404942864,1770707432998,-500.0,0.00038994,7]
[404942865,1770707433007,-500.0,0.00038994,7]
[404942866,1770707433016,-500.0,0.00038994,7]
[404942867,1770707433025,-500.0,0.00038994,7]
[404942868,1770707433036,-500.0,0.00038994,7]
[404942869,1770707433046,-500.0,0.00038994,7]
[404942870,1770707433055,-500.0,0.00038994,7]
[404942871,1770707433065,-500.0,0.00038994,7]
[404942872,1770707433075,-290.95623094,0.00038994,7]
[404942873,1770707433084,-500.0,0.00038994,7]
[404942874,1770707433093,-500.0,0.00038994,7]
[404942875,1770707433103,-500.0,0.00038994,7]
[404942876,1770707433112,-500.0,0.00038994,7]
[404942877,1770707433121,-500.0,0.00038994,7]
[404942878,1770707433132,-500.0,0.00038994,7]
[404942879,1770707433144,-600.0,0.00038994,7]
[404942880,1770707433154,-500.0,0.00038994,7]
[404942881,1770707433163,-500.0,0.00038994,7]
[404942882,1770707433173,-151.0,0.00038994,120]
[404942883,1770707433182,-151.0,0.00038994,120]
[404942884,1770707433192,-151.0,0.00038994,120]
[404942885,1770707433201,-151.0,0.00038994,120]
[404942886,1770707433211,-151.0,0.00038994,120]
[404942887,1770707433222,-188.107396,0.00038994,120]
[404942888,1770707433232,-400.22940395,0.00038994,15]
[404942889,1770707433242,-151.0,0.00038995,120]
[404942890,1770707433252,-151.0,0.00038995,120]
[404942891,1770707433261,-151.0,0.00038995,120]
[404942892,1770707433270,-160.854256,0.00038995,120]
[404942893,1770707433279,-151.0,0.00038995,120]
[404942894,1770707433288,-151.0,0.00038995,120]
[404942895,1770707433297,-151.0,0.00038995,120]
[404942896,1770707433307,-151.0,0.00038995,120]
[404942897,1770707433316,-151.0,0.00038995,120]
[404942898,1770707433325,-151.0,0.00038995,120]
[404942899,1770707433334,-151.0,0.00038995,120]
[404942900,1770707433344,-151.0,0.00038995,120]
[404942901,1770707433422,-151.0,0.00038995,120]
[404942902,1770707433451,-139.66241654,0.00038995,120]
[404943089,1770707440409,-166.20077448,0.00031575,2]
[404943090,1770707440419,-133.79922558,0.00037242,2]
[404943135,1770708246179,500.0,0.00013273,2]
[404943136,1770708246235,1500.0,0.00014368,2]
[404943137,1770708246287,1372.27117507,0.00014916,2]
[404943138,1770708246339,1000.0,0.00013821,2]
[404943142,1770708320238,500.0,0.00013273,2]
[404943143,1770708320286,466.46367224,0.00013821,2]
[404943144,1770708328232,300.0,0.00013673,2]
[404943145,1770708328273,600.0,0.00014221,2]
[404943146,1770708328331,900.0,0.00014768,2]
[404943147,1770708362499,182.0,0.0003,120]
[404943148,1770708376002,500.0,0.00013273,2]
[404943149,1770708376036,1000.0,0.00013821,2]
[404943150,1770708376105,1500.0,0.00014368,2]
[404943151,1770708376151,2000.0,0.00014916,2]
[404943152,1770708376204,2500.0,0.00015464,2]
[404943153,1770708376261,528.73272409,0.00016012,2]
[404943155,1770708383673,500.0,0.00013273,2]
[404943156,1770708425615,500.0,0.00013699,2]
[404943157,1770708425669,1004.19545126,0.00014247,2]
[404943158,1770708427746,426.91270838,0.00013273,2]
[404943159,1770708428703,500.0,0.00013699,2]
[404943160,1770708428738,1000.0,0.00014247,2]
[404943161,1770708428783,500.0,0.00014795,2]
[404943162,1770708431583,500.0,0.00013273,2]
[404943163,1770708431646,1000.0,0.00013821,2]
[404943164,1770708431698,1500.0,0.00014368,2]
[404943165,1770708431752,2000.0,0.00014916,2]
[404943166,1770708431808,2201.03217182,0.00015464,2]
[404943167,1770708434157,500.0,0.00013273,2]
[404943168,1770708434206,1000.0,0.00013821,2]
[404943169,1770708434255,1500.0,0.00014368,2]
[404943170,1770708434314,2000.0,0.00014916,2]
[404943171,1770708434395,2500.0,0.00015464,2]
[404943172,1770708434481,1046.48398893,0.00016012,2]
[404943181,1770708524485,2041.30852644,0.0003,120]
[404943205,1770708613368,500.0,0.00013699,2]
[404943206,1770708613421,1000.0,0.00014247,2]
[404943207,1770708613478,503.2427877,0.00014795,2]
[404943208,1770708613530,504.97259168,0.00013699,2]
[404943209,1770708617265,500.0,0.00013699,2]
[404943210,1770708617296,1000.0,0.00014247,2]
[404943211,1770708617325,1500.0,0.00014795,2]
[404943212,1770708617358,2000.0,0.00015342,2]
[404943213,1770708617410,1000.0,0.0001589,2]
[404943214,1770708619770,300.0,0.00013673,2]
[404943215,1770708619815,600.0,0.00014221,2]
[404943216,1770708619868,900.0,0.00014768,2]
[404943217,1770708619925,340.55280025,0.00015316,2]
[404943937,1770708646596,-150.0,0.00025376,2]
[404943938,1770708646606,-531.80754127,0.00026,2]
[404943939,1770708646615,-1856.11886534,0.00026,2]
[404943940,1770708646964,-1014.94503828,0.00024953,2]
[404943941,1770708646974,-15475.54955847,0.00026,2]
[404943942,1770708646983,-195.36520703,0.0002616,2]
[404943943,1770708646992,-177.0,0.00027376,2]
[404943944,1770708647001,-204.0,0.00029376,2]
[404943945,1770708647010,-231.0,0.00031376,2]
[404943946,1770708647019,-226.17205571,0.00033376,120]
[404943947,1770708647028,-158.8299138,0.00034717,60]
[404943948,1770708647037,-371.4937683,0.0003497,2]
[404943949,1770708647046,-2556.8219716,0.00035075,2]
[404943950,1770708647055,-500.0,0.000373,15]
[404943951,1770708647064,-1000.0,0.000376,15]
[404943952,1770708647073,-571.887005,0.00037683,2]
[404943953,1770708647083,-1000.0,0.000379,15]
[404943954,1770708647092,-5000.0,0.00038,2]
[404943955,1770708647102,-1000.0,0.000382,15]
[404943956,1770708647111,-1000.0,0.000385,15]
[404943957,1770708647120,-385.88642337,0.00038618,2]
[404943958,1770708647130,-174.16126213,0.00038618,2]
[404943959,1770708647139,-313.49027183,0.00038618,2]
[404943960,1770708647150,-557.31603882,0.00038618,2]
[404943961,1770708647159,-405.51858996,0.00038618,2]
[404943962,1770708647169,-633.0,0.00038738,2]
[404943963,1770708647179,-2163.0,0.00038738,2]
[404943964,1770708647188,-1376.0,0.00038738,2]
[404943965,1770708647198,-721.0,0.00038738,2]
[404943966,1770708647208,-427.716,0.00038738,2]
[404943967,1770708647217,-152.57360987,0.000388,2]
[404943968,1770708647228,-380.06017318,0.00038884,2]